[Event "Late-Titled-Tuesday-Blitz-September-12-2023"]
[Site "Chess.com"]
[Date "2023.09.12"]
[Round "3"]
[White "Alexei_Gubajdullin"]
[Black "Jaka_Brilej"]
[Result "0-1"]
[WhiteElo "2592"]
[BlackElo "2450"]
[TimeControl "180+1"]
[EndTime "14:27:53 PDT"]
[Termination "Jaka_Brilej won on time"]

1. d4 {[%clk 0:03:00.9]} 1... d5 {[%clk 0:02:58.6]} 2. Nf3 {[%clk 0:03:00.7]}
2... Bf5 {[%clk 0:02:57.9]} 3. Bf4 {[%clk 0:03:00.7]} 3... e6 {[%clk 0:02:55.7]}
4. e3 {[%clk 0:03:00.7]} 4... Bd6 {[%clk 0:02:53.5]} 5. Bxd6 {[%clk 0:02:58.2]}
5... Qxd6 {[%clk 0:02:53.5]} 6. c4 {[%clk 0:02:57.1]} 6... dxc4 {[%clk
0:02:47.5]} 7. Bxc4 {[%clk 0:02:54.3]} 7... Nf6 {[%clk 0:02:31.6]} 8. Nc3 {[%clk
0:02:53.6]} 8... c6 {[%clk 0:02:23.8]} 9. Qe2 {[%clk 0:02:47.7]} 9... Ne4 {[%clk
0:02:22.2]} 10. O-O {[%clk 0:02:45.5]} 10... Nd7 {[%clk 0:02:20]} 11. Nxe4
{[%clk 0:02:27]} 11... Bxe4 {[%clk 0:02:19.7]} 12. Ng5 {[%clk 0:02:26.5]} 12...
Bg6 {[%clk 0:02:17.7]} 13. Rfd1 {[%clk 0:02:20.5]} 13... h6 {[%clk 0:02:04.3]}
14. Nf3 {[%clk 0:02:20.1]} 14... O-O {[%clk 0:01:45.5]} 15. e4 {[%clk
0:02:19.7]} 15... Qf4 {[%clk 0:01:45.6]} 16. Nd2 {[%clk 0:01:49.2]} 16... Rad8
{[%clk 0:01:22.9]} 17. g3 {[%clk 0:01:45.7]} 17... Qc7 {[%clk 0:01:22.9]} 18. f3
{[%clk 0:01:26.5]} 18... Nb6 {[%clk 0:01:19.2]} 19. Nb3 {[%clk 0:01:21.2]} 19...
Bh5 {[%clk 0:00:57.1]} 20. Kg2 {[%clk 0:01:19.7]} 20... e5 {[%clk 0:00:47.5]}
21. g4 {[%clk 0:01:06.7]} 21... Bg6 {[%clk 0:00:47]} 22. a3 {[%clk 0:00:40.8]}
22... exd4 {[%clk 0:00:45.9]} 23. Rxd4 {[%clk 0:00:38.4]} 23... Rxd4 {[%clk
0:00:43.5]} 24. Nxd4 {[%clk 0:00:38.4]} 24... Rd8 {[%clk 0:00:42.7]} 25. Nb3
{[%clk 0:00:27.2]} 25... Qe5 {[%clk 0:00:42.1]} 26. Rc1 {[%clk 0:00:25.7]} 26...
h5 {[%clk 0:00:26.3]} 27. h3 {[%clk 0:00:23.5]} 27... h4 {[%clk 0:00:26.6]} 28.
Qf2 {[%clk 0:00:22.4]} 28... Nxc4 {[%clk 0:00:22.1]} 29. Rxc4 {[%clk 0:00:21.6]}
29... f6 {[%clk 0:00:22.6]} 30. Rd4 {[%clk 0:00:20.6]} 30... Rxd4 {[%clk
0:00:19.1]} 31. Nxd4 {[%clk 0:00:20.5]} 31... Bf7 {[%clk 0:00:17]} 32. b4 {[%clk
0:00:20.3]} 32... g5 {[%clk 0:00:17.1]} 33. Nf5 {[%clk 0:00:20]} 33... Be6
{[%clk 0:00:15.7]} 34. Ne3 {[%clk 0:00:19.2]} 34... Qd4 {[%clk 0:00:14.2]} 35.
Qe2 {[%clk 0:00:18]} 35... Kf7 {[%clk 0:00:13.9]} 36. Nc2 {[%clk 0:00:14.6]}
36... Qc3 {[%clk 0:00:13.5]} 37. Qf2 {[%clk 0:00:11]} 37... Bb3 {[%clk
0:00:12.2]} 38. Nd4 {[%clk 0:00:11.2]} 38... Bc4 {[%clk 0:00:11.1]} 39. Nf5
{[%clk 0:00:11.1]} 39... Be6 {[%clk 0:00:10.7]} 40. Qxa7 {[%clk 0:00:10]} 40...
Bxf5 {[%clk 0:00:10.8]} 41. gxf5 {[%clk 0:00:10.3]} 41... Qd2+ {[%clk
0:00:10.5]} 42. Qf2 {[%clk 0:00:09.8]} 42... Qc3 {[%clk 0:00:11]} 43. Qa2+
{[%clk 0:00:09.7]} 43... Kg7 {[%clk 0:00:10.8]} 44. b5 {[%clk 0:00:06]} 44...
cxb5 {[%clk 0:00:10.4]} 45. Qd5 {[%clk 0:00:06.2]} 45... Qb2+ {[%clk 0:00:09.2]}
46. Kf1 {[%clk 0:00:06.2]} 46... Qxa3 {[%clk 0:00:08.6]} 47. Qxb7+ {[%clk
0:00:06]} 47... Kh6 {[%clk 0:00:08.9]} 48. e5 {[%clk 0:00:04.4]} 48... Qc1+
{[%clk 0:00:08.3]} 49. Ke2 {[%clk 0:00:04.4]} 49... Qb2+ {[%clk 0:00:07.9]} 50.
Kd3 {[%clk 0:00:04.2]} 50... Qxe5 {[%clk 0:00:08.1]} 51. Qd7 {[%clk 0:00:04]}
51... b4 {[%clk 0:00:07.1]} 52. Qe6 {[%clk 0:00:04]} 52... Qc3+ {[%clk
0:00:06.7]} 53. Ke2 {[%clk 0:00:03.8]} 53... Qe5+ {[%clk 0:00:02.7]} 0-1

[Event "Late-Titled-Tuesday-Blitz-September-12-2023"]
[Site "Chess.com"]
[Date "2023.09.12"]
[Round "3"]
[White "Flaccidmoves"]
[Black "m_ezat"]
[Result "0-1"]
[WhiteElo "2458"]
[BlackElo "2666"]
[TimeControl "180+1"]
[EndTime "14:27:55 PDT"]
[Termination "m_ezat won by resignation"]

1. d4 {[%clk 0:02:52.7]} 1... Nf6 {[%clk 0:02:58.8]} 2. c4 {[%clk 0:02:52.8]}
2... g6 {[%clk 0:02:59]} 3. Nc3 {[%clk 0:02:53.3]} 3... Bg7 {[%clk 0:02:59.7]}
4. e4 {[%clk 0:02:53.8]} 4... O-O {[%clk 0:03:00.1]} 5. Nf3 {[%clk 0:02:54.3]}
5... d6 {[%clk 0:03:00.7]} 6. h3 {[%clk 0:02:54.8]} 6... c5 {[%clk 0:02:58.7]}
7. d5 {[%clk 0:02:52.3]} 7... b5 {[%clk 0:02:54.5]} 8. cxb5 {[%clk 0:02:51.1]}
8... a6 {[%clk 0:02:55.1]} 9. a4 {[%clk 0:02:36.1]} 9... e6 {[%clk 0:02:51.5]}
10. bxa6 {[%clk 0:02:19.8]} 10... exd5 {[%clk 0:02:49.5]} 11. exd5 {[%clk
0:02:17.6]} 11... Re8+ {[%clk 0:02:49.7]} 12. Be2 {[%clk 0:02:17.3]} 12... Bxa6
{[%clk 0:02:48]} 13. Be3 {[%clk 0:02:15.9]} 13... Qb6 {[%clk 0:02:44.6]} 14. Qd2
{[%clk 0:01:45.9]} 14... Ne4 {[%clk 0:02:37.4]} 15. Nxe4 {[%clk 0:01:43.2]}
15... Rxe4 {[%clk 0:02:37.5]} 16. O-O {[%clk 0:01:39]} 16... Qxb2 {[%clk
0:02:36.4]} 17. Bxa6 {[%clk 0:01:25]} 17... Nxa6 {[%clk 0:02:33.6]} 18. a5
{[%clk 0:01:06.6]} 18... Nb4 {[%clk 0:02:11.1]} 19. Ra4 {[%clk 0:00:59.1]} 19...
Qb3 {[%clk 0:01:56.2]} 20. Qd1 {[%clk 0:00:58.9]} 20... Qxd1 {[%clk 0:01:32.6]}
21. Rxd1 {[%clk 0:00:59.8]} 21... Re7 {[%clk 0:01:24.2]} 22. Nd2 {[%clk
0:00:58.8]} 22... Nxd5 {[%clk 0:01:21.7]} 23. Nc4 {[%clk 0:00:57.9]} 23... Nxe3
{[%clk 0:01:21.7]} 24. fxe3 {[%clk 0:00:57.1]} 24... Be5 {[%clk 0:01:17.1]} 25.
a6 {[%clk 0:00:41.7]} 25... Bg3 {[%clk 0:01:13.9]} 26. Kf1 {[%clk 0:00:37.5]}
26... Rea7 {[%clk 0:01:11.1]} 27. Rda1 {[%clk 0:00:29.8]} 27... d5 {[%clk
0:01:09.8]} 28. Nb6 {[%clk 0:00:29]} 28... Rd8 {[%clk 0:01:09.7]} 29. Rd1 {[%clk
0:00:21.9]} 29... Rd6 {[%clk 0:01:08.7]} 30. Nc8 {[%clk 0:00:19.5]} 30... Rdxa6
{[%clk 0:01:08.2]} 31. Rxa6 {[%clk 0:00:18]} 31... Rxa6 {[%clk 0:01:07.7]} 32.
Rxd5 {[%clk 0:00:18.6]} 32... Rf6+ {[%clk 0:00:59.5]} 33. Ke2 {[%clk 0:00:18.4]}
33... Rf2+ {[%clk 0:00:59.2]} 34. Kd3 {[%clk 0:00:18.5]} 34... Rxg2 {[%clk
0:00:59.1]} 35. Rxc5 {[%clk 0:00:18.9]} 35... Rh2 {[%clk 0:00:57.5]} 36. Ne7+
{[%clk 0:00:18.2]} 36... Kg7 {[%clk 0:00:56.6]} 37. Nd5 {[%clk 0:00:18.7]} 37...
Rxh3 {[%clk 0:00:56.3]} 38. Rb5 {[%clk 0:00:19.2]} 38... Rh1 {[%clk 0:00:54.2]}
39. Ke4 {[%clk 0:00:19.2]} 39... Rf1 {[%clk 0:00:53.5]} 40. Rb7 {[%clk
0:00:15.2]} 40... h5 {[%clk 0:00:50.9]} 41. Nf4 {[%clk 0:00:12.3]} 41... Bxf4
{[%clk 0:00:49.5]} 42. exf4 {[%clk 0:00:13.2]} 42... h4 {[%clk 0:00:42.7]} 43.
Ra7 {[%clk 0:00:10.8]} 43... g5 {[%clk 0:00:27.1]} 44. fxg5 {[%clk 0:00:09.8]}
44... Kg6 {[%clk 0:00:23.4]} 45. Ra2 {[%clk 0:00:08.1]} 45... Kxg5 {[%clk
0:00:20.6]} 46. Rg2+ {[%clk 0:00:08.7]} 46... Kh5 {[%clk 0:00:20.8]} 47. Rg8
{[%clk 0:00:09.3]} 47... h3 {[%clk 0:00:19.2]} 48. Ke3 {[%clk 0:00:07.8]} 48...
Kh4 {[%clk 0:00:18.3]} 49. Ke2 {[%clk 0:00:07.4]} 49... Rf6 {[%clk 0:00:18.1]}
50. Ke3 {[%clk 0:00:07.5]} 50... h2 {[%clk 0:00:15.7]} 51. Rh8+ {[%clk
0:00:07.1]} 51... Kg3 {[%clk 0:00:15.9]} 52. Rg8+ {[%clk 0:00:07.3]} 52... Rg6
{[%clk 0:00:14.6]} 53. Rh8 {[%clk 0:00:07.5]} 53... Kg2 {[%clk 0:00:14.7]} 0-1

[Event "Late-Titled-Tuesday-Blitz-September-12-2023"]
[Site "Chess.com"]
[Date "2023.09.12"]
[Round "3"]
[White "Valio_M1948"]
[Black "Sacbutt"]
[Result "1-0"]
[WhiteElo "2557"]
[BlackElo "2364"]
[TimeControl "180+1"]
[EndTime "14:28:04 PDT"]
[Termination "Valio_M1948 won on time"]

1. d4 {[%clk 0:03:00.9]} 1... Nf6 {[%clk 0:02:55.5]} 2. Bg5 {[%clk 0:03:00.9]}
2... d5 {[%clk 0:02:54.4]} 3. Bxf6 {[%clk 0:03:00.1]} 3... exf6 {[%clk
0:02:55.3]} 4. e3 {[%clk 0:03:00]} 4... Bd6 {[%clk 0:02:55.6]} 5. g3 {[%clk
0:03:00.6]} 5... O-O {[%clk 0:02:55.7]} 6. Bg2 {[%clk 0:03:01]} 6... c6 {[%clk
0:02:56.2]} 7. Nd2 {[%clk 0:03:01.4]} 7... Re8 {[%clk 0:02:56.4]} 8. Ne2 {[%clk
0:03:01.3]} 8... Nd7 {[%clk 0:02:56.9]} 9. O-O {[%clk 0:03:00.6]} 9... f5 {[%clk
0:02:55.5]} 10. c4 {[%clk 0:03:00.8]} 10... Nf6 {[%clk 0:02:54.8]} 11. cxd5
{[%clk 0:03:00.7]} 11... Nxd5 {[%clk 0:02:55.1]} 12. Nc3 {[%clk 0:02:56.8]}
12... Nb6 {[%clk 0:02:45.2]} 13. Rb1 {[%clk 0:02:47.5]} 13... a5 {[%clk
0:02:37.5]} 14. Nb3 {[%clk 0:02:33.9]} 14... Be6 {[%clk 0:02:32.8]} 15. Nc5
{[%clk 0:02:30.3]} 15... Bxc5 {[%clk 0:02:32.2]} 16. dxc5 {[%clk 0:02:31.2]}
16... Nd7 {[%clk 0:02:12.7]} 17. Qd4 {[%clk 0:02:02.5]} 17... Qe7 {[%clk
0:02:09.6]} 18. b4 {[%clk 0:01:48]} 18... axb4 {[%clk 0:02:05.5]} 19. Rxb4
{[%clk 0:01:47.8]} 19... Nxc5 {[%clk 0:02:00.3]} 20. Rc1 {[%clk 0:01:30]} 20...
Red8 {[%clk 0:01:51.3]} 21. Nd5 {[%clk 0:01:29.3]} 21... Bxd5 {[%clk 0:01:45.1]}
22. Qxc5 {[%clk 0:01:29.2]} 22... Qxc5 {[%clk 0:01:41.8]} 23. Rxc5 {[%clk
0:01:30.1]} 23... Bxg2 {[%clk 0:01:38.5]} 24. Kxg2 {[%clk 0:01:31]} 24... Rd7
{[%clk 0:01:30.8]} 25. a4 {[%clk 0:01:29.4]} 25... g6 {[%clk 0:01:27.3]} 26. a5
{[%clk 0:01:27.8]} 26... Kf8 {[%clk 0:01:17.9]} 27. Re5 {[%clk 0:01:22.1]} 27...
Re8 {[%clk 0:01:12]} 28. Rc5 {[%clk 0:01:15.6]} 28... Ra8 {[%clk 0:01:09.4]} 29.
Re5 {[%clk 0:01:15.3]} 29... Ra7 {[%clk 0:01:10]} 30. Kf3 {[%clk 0:01:12.8]}
30... Re7 {[%clk 0:01:08.1]} 31. Rc5 {[%clk 0:01:11.5]} 31... h6 {[%clk
0:01:04.4]} 32. Rb6 {[%clk 0:01:10.1]} 32... Ke8 {[%clk 0:00:56.7]} 33. h4
{[%clk 0:01:09.8]} 33... Kd8 {[%clk 0:00:48.8]} 34. h5 {[%clk 0:01:06.7]} 34...
Kc7 {[%clk 0:00:43.7]} 35. hxg6 {[%clk 0:01:04.8]} 35... fxg6 {[%clk 0:00:44.6]}
36. Rb4 {[%clk 0:01:05.3]} 36... Ra8 {[%clk 0:00:38.5]} 37. g4 {[%clk
0:00:58.7]} 37... fxg4+ {[%clk 0:00:34.6]} 38. Rxg4 {[%clk 0:00:59.6]} 38...
Rf8+ {[%clk 0:00:33.7]} 39. Ke2 {[%clk 0:00:59.6]} 39... g5 {[%clk 0:00:31.1]}
40. Rgc4 {[%clk 0:00:56.5]} 40... Ref7 {[%clk 0:00:30.3]} 41. a6 {[%clk
0:00:51]} 41... Rxf2+ {[%clk 0:00:26.8]} 42. Kd3 {[%clk 0:00:51]} 42... Rd8+
{[%clk 0:00:20.4]} 43. Kc3 {[%clk 0:00:49.3]} 43... Rd6 {[%clk 0:00:16]} 44. Ra5
{[%clk 0:00:25.9]} 44... bxa6 {[%clk 0:00:11.9]} 45. Rxa6 {[%clk 0:00:26.8]}
45... Kb7 {[%clk 0:00:10.7]} 46. Ra5 {[%clk 0:00:26.1]} 46... Rf3 {[%clk
0:00:08.6]} 47. Re5 {[%clk 0:00:26.5]} 47... Rf7 {[%clk 0:00:07.2]} 48. Rb4+
{[%clk 0:00:26.6]} 48... Kc7 {[%clk 0:00:07.4]} 49. Ra5 {[%clk 0:00:26.9]} 49...
Rdd7 {[%clk 0:00:06.4]} 50. Rc4 {[%clk 0:00:24]} 50... Kd8 {[%clk 0:00:06]} 51.
Ra8+ {[%clk 0:00:21.1]} 51... Ke7 {[%clk 0:00:06]} 52. Rxc6 {[%clk 0:00:20]}
52... Rf6 {[%clk 0:00:05.6]} 53. Rc4 {[%clk 0:00:17]} 53... Kf7 {[%clk
0:00:05.8]} 54. e4 {[%clk 0:00:14.4]} 54... Rf3+ {[%clk 0:00:04.5]} 55. Kb4
{[%clk 0:00:14.2]} 55... Rb7+ {[%clk 0:00:04.1]} 56. Kc5 {[%clk 0:00:14.3]}
56... Rf6 {[%clk 0:00:03.7]} 57. Rc8 {[%clk 0:00:13]} 57... g4 {[%clk
0:00:02.7]} 58. e5 {[%clk 0:00:13.3]} 58... Rf5 {[%clk 0:00:02.4]} 59. Kd5
{[%clk 0:00:12.6]} 59... Rd7+ {[%clk 0:00:02.3]} 60. Ke4 {[%clk 0:00:12.4]} 1-0

[Event "Late-Titled-Tuesday-Blitz-September-12-2023"]
[Site "Chess.com"]
[Date "2023.09.12"]
[Round "3"]
[White "AradNazari"]
[Black "DanielNaroditsky"]
[Result "0-1"]
[WhiteElo "2752"]
[BlackElo "3082"]
[TimeControl "180+1"]
[EndTime "14:28:06 PDT"]
[Termination "DanielNaroditsky won by resignation"]

1. e4 {[%clk 0:02:54.1]} 1... c5 {[%clk 0:03:00.3]} 2. Nf3 {[%clk 0:02:54.3]}
2... d6 {[%clk 0:03:01]} 3. Bb5+ {[%clk 0:02:53.8]} 3... Nd7 {[%clk 0:03:01.7]}
4. d4 {[%clk 0:02:53.4]} 4... cxd4 {[%clk 0:03:02.5]} 5. Qxd4 {[%clk 0:02:53.9]}
5... Nf6 {[%clk 0:02:56.3]} 6. O-O {[%clk 0:02:53.3]} 6... a6 {[%clk 0:02:52.8]}
7. Bxd7+ {[%clk 0:02:51.2]} 7... Bxd7 {[%clk 0:02:52.7]} 8. c4 {[%clk
0:02:49.4]} 8... e5 {[%clk 0:02:51]} 9. Qd3 {[%clk 0:02:49.5]} 9... b5 {[%clk
0:02:51]} 10. Nfd2 {[%clk 0:02:49.2]} 10... Be7 {[%clk 0:02:48.4]} 11. Nc3
{[%clk 0:02:49.3]} 11... Rb8 {[%clk 0:02:44.3]} 12. b3 {[%clk 0:02:48.3]} 12...
O-O {[%clk 0:02:43]} 13. a4 {[%clk 0:02:48.1]} 13... bxc4 {[%clk 0:02:40.1]} 14.
bxc4 {[%clk 0:02:37.6]} 14... Qc7 {[%clk 0:02:29.4]} 15. Ba3 {[%clk 0:02:37.2]}
15... Rfc8 {[%clk 0:02:29.4]} 16. Rfc1 {[%clk 0:02:35.6]} 16... Qa7 {[%clk
0:02:16.3]} 17. h3 {[%clk 0:02:29.6]} 17... Bc6 {[%clk 0:02:06.5]} 18. a5 {[%clk
0:02:23.6]} 18... Qd7 {[%clk 0:01:38.8]} 19. Nf1 {[%clk 0:02:18.2]} 19... Nh5
{[%clk 0:01:33.8]} 20. Ne3 {[%clk 0:01:54.4]} 20... Nf4 {[%clk 0:01:33.6]} 21.
Qd2 {[%clk 0:01:49.6]} 21... Rb3 {[%clk 0:01:30.4]} 22. Qa2 {[%clk 0:01:00.3]}
22... Rxa3 {[%clk 0:01:25.1]} 23. Qxa3 {[%clk 0:00:55]} 23... d5 {[%clk
0:01:25.8]} 24. c5 {[%clk 0:00:36]} 24... d4 {[%clk 0:01:24.7]} 25. Ned5 {[%clk
0:00:36.3]} 25... dxc3 {[%clk 0:01:21.4]} 26. Nb6 {[%clk 0:00:36.7]} 26... Qe6
{[%clk 0:00:22.5]} 27. Nxc8 {[%clk 0:00:34.6]} 27... Qxc8 {[%clk 0:00:20.9]} 28.
Re1 {[%clk 0:00:28]} 28... Nd3 {[%clk 0:00:14]} 29. Red1 {[%clk 0:00:22.5]}
29... Bxc5 {[%clk 0:00:02.4]} 30. Qxc3 {[%clk 0:00:19.4]} 30... Bxf2+ {[%clk
0:00:03.1]} 31. Kf1 {[%clk 0:00:19.4]} 31... Bd4 {[%clk 0:00:03.3]} 32. Qc4
{[%clk 0:00:12.1]} 32... Bxa1 {[%clk 0:00:02.9]} 33. Rxd3 {[%clk 0:00:07.3]}
33... Bd4 {[%clk 0:00:02.7]} 34. Ke1 {[%clk 0:00:06.3]} 34... g6 {[%clk
0:00:02.7]} 35. Rd2 {[%clk 0:00:05.8]} 35... Qd7 {[%clk 0:00:02.8]} 36. Rc2
{[%clk 0:00:05.9]} 36... Bb5 {[%clk 0:00:02.7]} 37. Qc8+ {[%clk 0:00:06.6]}
37... Qxc8 {[%clk 0:00:03.3]} 38. Rxc8+ {[%clk 0:00:07.5]} 38... Kg7 {[%clk
0:00:04.2]} 39. Kd2 {[%clk 0:00:08.4]} 39... Kf6 {[%clk 0:00:04]} 40. Rh8 {[%clk
0:00:08.9]} 40... h5 {[%clk 0:00:04.3]} 41. h4 {[%clk 0:00:09.5]} 41... Bc5
{[%clk 0:00:04.8]} 42. Kc3 {[%clk 0:00:08.7]} 42... Bf2 {[%clk 0:00:05.5]} 43.
Kb4 {[%clk 0:00:08.6]} 43... Be1+ {[%clk 0:00:06.1]} 44. Kc5 {[%clk 0:00:08.7]}
44... Bxa5 {[%clk 0:00:07]} 45. Kd5 {[%clk 0:00:08.7]} 45... Be1 {[%clk
0:00:07.1]} 46. Rb8 {[%clk 0:00:08.7]} 46... Bxh4 {[%clk 0:00:07.1]} 47. Rb6+
{[%clk 0:00:09.1]} 47... Kg7 {[%clk 0:00:07.7]} 48. Kxe5 {[%clk 0:00:09.8]}
48... Bg3+ {[%clk 0:00:08.3]} 49. Kd5 {[%clk 0:00:09.9]} 49... h4 {[%clk
0:00:09]} 50. e5 {[%clk 0:00:10.5]} 50... g5 {[%clk 0:00:09.1]} 51. Rb7 {[%clk
0:00:10.4]} 51... Bf1 {[%clk 0:00:05.1]} 52. Rb2 {[%clk 0:00:09.6]} 52... g4
{[%clk 0:00:05.5]} 53. Ke4 {[%clk 0:00:09.8]} 53... h3 {[%clk 0:00:05]} 54. gxh3
{[%clk 0:00:09.9]} 54... gxh3 {[%clk 0:00:05.9]} 55. e6 {[%clk 0:00:07]} 55...
h2 {[%clk 0:00:02.8]} 56. Rxh2 {[%clk 0:00:07]} 56... Bxh2 {[%clk 0:00:03.7]}
57. e7 {[%clk 0:00:07.2]} 57... Bb5 {[%clk 0:00:04.4]} 0-1

[Event "Late-Titled-Tuesday-Blitz-September-12-2023"]
[Site "Chess.com"]
[Date "2023.09.12"]
[Round "3"]
[White "SONOFHOLYGOD"]
[Black "vladislavkovalev"]
[Result "0-1"]
[WhiteElo "2615"]
[BlackElo "2900"]
[TimeControl "180+1"]
[EndTime "14:28:14 PDT"]
[Termination "vladislavkovalev won by resignation"]

1. d4 {[%clk 0:03:00.9]} 1... Nf6 {[%clk 0:02:58]} 2. c4 {[%clk 0:03:00.7]} 2...
e6 {[%clk 0:02:57.9]} 3. Nf3 {[%clk 0:03:00.2]} 3... Bb4+ {[%clk 0:02:58.2]} 4.
Bd2 {[%clk 0:03:00.2]} 4... Qe7 {[%clk 0:02:58.7]} 5. g3 {[%clk 0:03:00.3]} 5...
b6 {[%clk 0:02:59.2]} 6. Bg2 {[%clk 0:03:00.6]} 6... Bb7 {[%clk 0:02:59.8]} 7.
O-O {[%clk 0:03:01.1]} 7... Bxd2 {[%clk 0:03:00.2]} 8. Qxd2 {[%clk 0:02:59.7]}
8... O-O {[%clk 0:03:00.7]} 9. Nc3 {[%clk 0:02:59.7]} 9... Ne4 {[%clk
0:02:57.5]} 10. Qc2 {[%clk 0:02:54.5]} 10... Nxc3 {[%clk 0:02:57.7]} 11. Qxc3
{[%clk 0:02:54.7]} 11... d6 {[%clk 0:02:56.4]} 12. Rfe1 {[%clk 0:02:52.3]} 12...
Nd7 {[%clk 0:02:54.4]} 13. Qa3 {[%clk 0:02:47.9]} 13... Be4 {[%clk 0:02:49.9]}
14. Rac1 {[%clk 0:02:39]} 14... f5 {[%clk 0:02:47.1]} 15. Nh4 {[%clk 0:02:24.7]}
15... g5 {[%clk 0:02:34.3]} 16. Bxe4 {[%clk 0:02:21.2]} 16... fxe4 {[%clk
0:02:35.2]} 17. Ng2 {[%clk 0:02:21.1]} 17... e5 {[%clk 0:01:48.7]} 18. Qe3
{[%clk 0:01:55.5]} 18... exd4 {[%clk 0:01:46.3]} 19. Qxd4 {[%clk 0:01:55.4]}
19... Rf7 {[%clk 0:01:39.8]} 20. f4 {[%clk 0:01:49.9]} 20... exf3 {[%clk
0:01:05.1]} 21. exf3 {[%clk 0:01:49.5]} 21... Qf6 {[%clk 0:01:02]} 22. Qxf6
{[%clk 0:01:42.5]} 22... Rxf6 {[%clk 0:01:02.9]} 23. f4 {[%clk 0:01:42.7]} 23...
gxf4 {[%clk 0:01:00.6]} 24. Nxf4 {[%clk 0:01:43.1]} 24... Ne5 {[%clk 0:01:01.3]}
25. Kg2 {[%clk 0:01:33.3]} 25... a5 {[%clk 0:00:54.8]} 26. Nd5 {[%clk
0:01:23.1]} 26... Rf7 {[%clk 0:00:54.9]} 27. Re3 {[%clk 0:01:17.3]} 27... Raf8
{[%clk 0:00:54.9]} 28. Rc2 {[%clk 0:01:13.3]} 28... h5 {[%clk 0:00:51.8]} 29. h3
{[%clk 0:01:12.3]} 29... Kh7 {[%clk 0:00:51.6]} 30. b3 {[%clk 0:01:11.6]} 30...
a4 {[%clk 0:00:37.7]} 31. Rce2 {[%clk 0:01:09.8]} 31... a3 {[%clk 0:00:27.9]}
32. Nf4 {[%clk 0:01:00.5]} 32... h4 {[%clk 0:00:24.2]} 33. Ne6 {[%clk
0:00:56.9]} 33... Rg8 {[%clk 0:00:19.7]} 34. g4 {[%clk 0:00:50]} 34... c5 {[%clk
0:00:12.8]} 35. Rxe5 {[%clk 0:00:42]} 35... dxe5 {[%clk 0:00:13]} 36. Rxe5
{[%clk 0:00:42.7]} 36... Rd7 {[%clk 0:00:03.4]} 37. Rh5+ {[%clk 0:00:37.5]}
37... Kg6 {[%clk 0:00:04]} 38. Nf4+ {[%clk 0:00:23.1]} 38... Kf7 {[%clk
0:00:04.4]} 39. Nd5 {[%clk 0:00:20.1]} 39... b5 {[%clk 0:00:05]} 40. Rh7+ {[%clk
0:00:19.4]} 40... Rg7 {[%clk 0:00:05.3]} 41. Rxh4 {[%clk 0:00:16.7]} 41... b4
{[%clk 0:00:05.6]} 42. Rh5 {[%clk 0:00:16.5]} 42... Rg6 {[%clk 0:00:05.4]} 43.
Rh7+ {[%clk 0:00:13.8]} 43... Ke8 {[%clk 0:00:05.4]} 44. Rh8+ {[%clk 0:00:11.6]}
44... Kf7 {[%clk 0:00:05.9]} 45. Rh7+ {[%clk 0:00:10.3]} 45... Rg7 {[%clk
0:00:05.9]} 46. Rh5 {[%clk 0:00:10.2]} 46... Rd6 {[%clk 0:00:06]} 47. Rf5+
{[%clk 0:00:10.2]} 47... Ke6 {[%clk 0:00:05.4]} 48. Kg3 {[%clk 0:00:08.5]} 48...
Rf7 {[%clk 0:00:05.3]} 49. Rg5 {[%clk 0:00:07.6]} 49... Rf1 {[%clk 0:00:05]} 50.
Rg6+ {[%clk 0:00:06.3]} 50... Kd7 {[%clk 0:00:05.4]} 51. Rg7+ {[%clk 0:00:06.8]}
51... Ke8 {[%clk 0:00:06]} 52. Re7+ {[%clk 0:00:07]} 52... Kd8 {[%clk
0:00:05.4]} 53. Re2 {[%clk 0:00:07.6]} 53... Rb1 {[%clk 0:00:05.6]} 54. h4
{[%clk 0:00:07.5]} 54... Rb2 {[%clk 0:00:06.2]} 55. Re1 {[%clk 0:00:05.2]} 55...
Rxa2 {[%clk 0:00:06.1]} 56. h5 {[%clk 0:00:05.8]} 56... Rb2 {[%clk 0:00:06.1]}
57. Ra1 {[%clk 0:00:06.5]} 57... Rxb3+ {[%clk 0:00:06.6]} 58. Kh4 {[%clk
0:00:06.6]} 58... Rb2 {[%clk 0:00:03.8]} 59. g5 {[%clk 0:00:05.8]} 59... a2
{[%clk 0:00:03.1]} 60. g6 {[%clk 0:00:04.5]} 60... b3 {[%clk 0:00:03.6]} 61. g7
{[%clk 0:00:04.1]} 61... Rg2 {[%clk 0:00:04.4]} 62. g8=Q+ {[%clk 0:00:01.2]}
62... Rxg8 {[%clk 0:00:04.4]} 63. Nc3 {[%clk 0:00:01.9]} 63... Rg2 {[%clk
0:00:03.9]} 64. Nxa2 {[%clk 0:00:02.8]} 64... bxa2 {[%clk 0:00:04]} 65. Rg1
{[%clk 0:00:03.5]} 65... Rxg1 {[%clk 0:00:04.4]} 0-1